[Event "Titled Tuesday Blitz March 28 Late 2023"]
[White "Jorajuria Mendoza, Algol"]
[Black "Belov, Alexei"]
[WhiteFideId "5128897"]
[BlackFideId "4128206"]
[WhiteElo "2076"]
[BlackElo "2528"]
[Result "0-1"]
[Round "04"]
[TimeControl "180+2"]
[Date "2023.03.28"]
[WhiteClock "0:00:14"]
[BlackClock "0:00:09"]

1. e4 {[%clk 0:03:00]}  e6 {[%clk 0:02:59]} 2. d4 {[%clk 0:03:00]}  d5 {[%clk 0:02:58]} 3. Nc3 {[%clk 0:03:01]}  Nf6 {[%clk 0:02:58]} 4. e5 {[%clk 0:03:01]}  Ne4 {[%clk 0:02:58]} 5. Nxe4 {[%clk 0:02:54]}  dxe4 {[%clk 0:02:59]} 6. c3 {[%clk 0:02:48]}  c5 {[%clk 0:02:59]} 7. Be2 {[%clk 0:02:32]}  Nc6 {[%clk 0:02:58]} 8. Be3 {[%clk 0:02:25]}  cxd4 {[%clk 0:02:57]} 9. cxd4 {[%clk 0:02:26]}  Bb4+ {[%clk 0:02:56]} 10. Kf1 {[%clk 0:02:26]}  O-O {[%clk 0:02:54]} 11. Nh3 {[%clk 0:02:20]}  Qd7 {[%clk 0:02:37]} 12. Ng5 {[%clk 0:02:10]}  Rd8 {[%clk 0:02:33]} 13. Bb5 {[%clk 0:02:03]}  Qd5 {[%clk 0:02:29]} 14. Qh5 {[%clk 0:01:47]}  Qxb5+ {[%clk 0:02:27]} 15. Kg1 {[%clk 0:01:46]}  Rd7 {[%clk 0:02:03]} 16. Qxh7+ {[%clk 0:01:46]}  Kf8 {[%clk 0:02:03]} 17. Qh8+ {[%clk 0:01:47]}  Ke7 {[%clk 0:02:03]} 18. Nxe4 {[%clk 0:01:48]}  Rxd4 {[%clk 0:01:44]} 19. Bxd4 {[%clk 0:01:05]}  Nxd4 {[%clk 0:01:42]} 20. Qh4+ {[%clk 0:01:03]}  Ke8 {[%clk 0:01:13]} 21. Nf6+ {[%clk 0:01:00]}  gxf6 {[%clk 0:01:11]} 22. Qxd4 {[%clk 0:01:00]}  fxe5 {[%clk 0:01:08]} 23. Qg4 {[%clk 0:00:51]}  Bd7 {[%clk 0:01:07]} 24. h4 {[%clk 0:00:45]}  Bf8 {[%clk 0:01:04]} 25. h5 {[%clk 0:00:41]}  Qxb2 {[%clk 0:00:43]} 26. Rd1 {[%clk 0:00:34]}  Bb5 {[%clk 0:00:42]} 27. h6 {[%clk 0:00:21]}  Be2 {[%clk 0:00:41]} 28. Qa4+ {[%clk 0:00:20]}  b5 {[%clk 0:00:42]} 29. Qa6 {[%clk 0:00:19]}  Bxd1 {[%clk 0:00:31]} 30. Qc6+ {[%clk 0:00:19]}  Ke7 {[%clk 0:00:31]} 31. Qxa8 {[%clk 0:00:20]}  Qc1 {[%clk 0:00:28]} 32. Qxa7+ {[%clk 0:00:19]}  Kf6 {[%clk 0:00:26]} 33. Qe3 {[%clk 0:00:20]}  Qb1 {[%clk 0:00:10]} 34. Qb3 {[%clk 0:00:14]}  Bxb3+ {[%clk 0:00:09]} 0-1


[Site "https://www.chess.com"]

[Event "Titled Tuesday Blitz March 28 Late 2023"]
[White "Sliwicki, Damian"]
[Black "Ronka, Erik"]
[WhiteFideId "1127128"]
[BlackFideId "505080"]
[WhiteElo "2030"]
[BlackElo "2264"]
[Result "0-1"]
[Round "04"]
[TimeControl "180+2"]
[Date "2023.03.28"]
[WhiteClock "0:00:07"]
[BlackClock "0:01:57"]

1. e4 {[%clk 0:02:58]}  c5 {[%clk 0:02:59]} 2. Nf3 {[%clk 0:02:49]}  d6 {[%clk 0:02:55]} 3. d4 {[%clk 0:02:49]}  cxd4 {[%clk 0:02:54]} 4. Qxd4 {[%clk 0:02:50]}  a6 {[%clk 0:02:45]} 5. c4 {[%clk 0:02:49]}  Nf6 {[%clk 0:02:42]} 6. Nc3 {[%clk 0:02:47]}  g6 {[%clk 0:02:42]} 7. Bg5 {[%clk 0:02:46]}  Bg7 {[%clk 0:02:42]} 8. Qd2 {[%clk 0:02:38]}  O-O {[%clk 0:02:42]} 9. Bh6 {[%clk 0:02:39]}  Bg4 {[%clk 0:02:32]} 10. Bxg7 {[%clk 0:02:36]}  Kxg7 {[%clk 0:02:33]} 11. Be2 {[%clk 0:02:36]}  Nc6 {[%clk 0:02:24]} 12. h4 {[%clk 0:02:28]}  h5 {[%clk 0:02:22]} 13. Nd4 {[%clk 0:02:20]}  Bxe2 {[%clk 0:02:20]} 14. Nxc6 {[%clk 0:02:01]}  bxc6 {[%clk 0:02:21]} 15. Qxe2 {[%clk 0:02:00]}  Qa5 {[%clk 0:02:21]} 16. O-O {[%clk 0:01:49]}  Rab8 {[%clk 0:02:20]} 17. Rac1 {[%clk 0:01:42]}  Qe5 {[%clk 0:02:16]} 18. Kh1 {[%clk 0:01:25]}  Ng4 {[%clk 0:02:14]} 19. f4 {[%clk 0:01:18]}  Qd4 {[%clk 0:02:11]} 20. Rcd1 {[%clk 0:00:59]}  Qe3 {[%clk 0:02:11]} 21. Rf3 {[%clk 0:00:14]}  Qxe2 {[%clk 0:02:10]} 22. Nxe2 {[%clk 0:00:10]}  Rxb2 {[%clk 0:02:10]} 23. Nc3 {[%clk 0:00:08]}  Nf2+ {[%clk 0:02:08]} 24. Rxf2 {[%clk 0:00:08]}  Rxf2 {[%clk 0:02:09]} 25. Rd3 {[%clk 0:00:04]}  Rb8 {[%clk 0:02:08]} 26. e5 {[%clk 0:00:02]}  Rxf4 {[%clk 0:02:02]} 27. exd6 {[%clk 0:00:02]}  exd6 {[%clk 0:02:02]} 28. Rxd6 {[%clk 0:00:02]}  Rxh4+ {[%clk 0:02:01]} 29. Kg1 {[%clk 0:00:03]}  Rxc4 {[%clk 0:02:02]} 30. Ne2 {[%clk 0:00:03]}  Rb2 {[%clk 0:02:01]} 31. Kf2 {[%clk 0:00:03]}  Rcc2 {[%clk 0:02:00]} 32. Kf3 {[%clk 0:00:04]}  Rxe2 {[%clk 0:02:00]} 33. Rd7 {[%clk 0:00:04]}  Rxg2 {[%clk 0:01:59]} 34. a4 {[%clk 0:00:05]}  h4 {[%clk 0:01:58]} 35. Ke4 {[%clk 0:00:06]}  h3 {[%clk 0:01:59]} 36. a5 {[%clk 0:00:07]}  h2 {[%clk 0:01:58]} 37. Rd1 {[%clk 0:00:07]}  Rg1 {[%clk 0:01:57]} 0-1


[Site "https://www.chess.com"]

[Event "Titled Tuesday Blitz March 28 Late 2023"]
[White "Yurasova, Daria"]
[Black "Van Foreest, Machteld"]
[WhiteFideId "34146919"]
[BlackFideId "1051563"]
[WhiteElo "2134"]
[BlackElo "2018"]
[Result "1-0"]
[Round "04"]
[TimeControl "180+2"]
[Date "2023.03.28"]
[WhiteClock "0:00:09"]
[BlackClock "0:00:04"]

1. d4 {[%clk 0:03:00]}  d5 {[%clk 0:02:51]} 2. Nf3 {[%clk 0:03:00]}  Nf6 {[%clk 0:02:50]} 3. Bf4 {[%clk 0:03:00]}  e6 {[%clk 0:02:50]} 4. e3 {[%clk 0:03:00]}  c5 {[%clk 0:02:50]} 5. c3 {[%clk 0:03:00]}  Nc6 {[%clk 0:02:50]} 6. Nbd2 {[%clk 0:02:59]}  Be7 {[%clk 0:02:50]} 7. h3 {[%clk 0:02:59]}  O-O {[%clk 0:02:50]} 8. Bd3 {[%clk 0:02:59]}  a6 {[%clk 0:02:49]} 9. O-O {[%clk 0:02:59]}  b5 {[%clk 0:02:49]} 10. Qe2 {[%clk 0:02:53]}  Bb7 {[%clk 0:02:43]} 11. Rad1 {[%clk 0:02:52]}  Rc8 {[%clk 0:02:40]} 12. Rfe1 {[%clk 0:02:51]}  b4 {[%clk 0:02:25]} 13. Bb1 {[%clk 0:02:38]}  bxc3 {[%clk 0:02:21]} 14. bxc3 {[%clk 0:02:38]}  Qa5 {[%clk 0:02:19]} 15. c4 {[%clk 0:02:04]}  cxd4 {[%clk 0:02:03]} 16. exd4 {[%clk 0:02:05]}  Nb4 {[%clk 0:02:00]} 17. c5 {[%clk 0:01:51]}  Qa4 {[%clk 0:01:40]} 18. Nb3 {[%clk 0:01:34]}  Ne4 {[%clk 0:01:31]} 19. Qb2 {[%clk 0:00:57]}  Qb5 {[%clk 0:01:10]} 20. Nfd2 {[%clk 0:00:33]}  f5 {[%clk 0:01:00]} 21. Nf3 {[%clk 0:00:19]}  a5 {[%clk 0:00:58]} 22. a3 {[%clk 0:00:17]}  Nc6 {[%clk 0:00:55]} 23. Bd3 {[%clk 0:00:17]}  Qa4 {[%clk 0:00:53]} 24. Nbd2 {[%clk 0:00:14]}  Nd8 {[%clk 0:00:36]} 25. Bb5 {[%clk 0:00:12]}  Qxd1 {[%clk 0:00:27]} 26. Rxd1 {[%clk 0:00:11]}  Nc6 {[%clk 0:00:27]} 27. a4 {[%clk 0:00:09]}  Bf6 {[%clk 0:00:26]} 28. Nxe4 {[%clk 0:00:09]}  fxe4 {[%clk 0:00:25]} 29. Ne5 {[%clk 0:00:10]}  Bh4 {[%clk 0:00:17]} 30. Bg3 {[%clk 0:00:09]}  Nxe5 {[%clk 0:00:14]} 31. dxe5 {[%clk 0:00:08]}  Be7 {[%clk 0:00:12]} 32. Rc1 {[%clk 0:00:07]}  Bxc5 {[%clk 0:00:12]} 33. Kh2 {[%clk 0:00:06]}  e3 {[%clk 0:00:11]} 34. fxe3 {[%clk 0:00:06]}  Bxe3 {[%clk 0:00:12]} 35. Rxc8 {[%clk 0:00:07]}  Bxc8 {[%clk 0:00:12]} 36. Qe2 {[%clk 0:00:06]}  d4 {[%clk 0:00:12]} 37. Bc4 {[%clk 0:00:06]}  Kh8 {[%clk 0:00:09]} 38. Qg4 {[%clk 0:00:06]}  Rf5 {[%clk 0:00:07]} 39. Qh4 {[%clk 0:00:06]}  Bg5 {[%clk 0:00:07]} 40. Qe4 {[%clk 0:00:06]}  Be3 {[%clk 0:00:05]} 41. Qa8 {[%clk 0:00:07]}  Rf8 {[%clk 0:00:05]} 42. Qc6 {[%clk 0:00:07]}  h6 {[%clk 0:00:04]} 43. Bxe6 {[%clk 0:00:07]}  Bxe6 {[%clk 0:00:05]} 44. Qxe6 {[%clk 0:00:07]}  d3 {[%clk 0:00:05]} 45. Qd6 {[%clk 0:00:08]}  Rf1 {[%clk 0:00:04]} 46. Qd8+ {[%clk 0:00:08]}  Kh7 {[%clk 0:00:04]} 47. Qxd3+ {[%clk 0:00:09]}  g6 {[%clk 0:00:04]} 48. Qxe3 {[%clk 0:00:09]} 1-0


[Site "https://www.chess.com"]

[Event "Titled Tuesday Blitz March 28 Late 2023"]
[White "Skibbe, Willi"]
[Black "a-z30"]
[WhiteFideId "4682190"]
[WhiteElo "2314"]
[BlackElo "2506"]
[Result "1/2-1/2"]
[Round "04"]
[TimeControl "180+2"]
[Date "2023.03.28"]
[WhiteClock "0:00:11"]
[BlackClock "0:00:15"]

1. d4 {[%clk 0:03:00]}  d6 {[%clk 0:03:00]} 2. e4 {[%clk 0:02:58]}  Nf6 {[%clk 0:03:01]} 3. Nc3 {[%clk 0:02:52]}  g6 {[%clk 0:03:02]} 4. Nf3 {[%clk 0:02:51]}  Bg7 {[%clk 0:03:02]} 5. Be2 {[%clk 0:02:51]}  O-O {[%clk 0:03:03]} 6. O-O {[%clk 0:02:52]}  Bg4 {[%clk 0:03:03]} 7. Be3 {[%clk 0:02:50]}  Nc6 {[%clk 0:03:02]} 8. d5 {[%clk 0:02:49]}  Bxf3 {[%clk 0:03:01]} 9. Bxf3 {[%clk 0:02:49]}  Ne5 {[%clk 0:03:02]} 10. Be2 {[%clk 0:02:50]}  c6 {[%clk 0:03:02]} 11. f4 {[%clk 0:02:11]}  Ned7 {[%clk 0:03:00]} 12. dxc6 {[%clk 0:02:06]}  bxc6 {[%clk 0:03:01]} 13. Qd2 {[%clk 0:01:58]}  Qc7 {[%clk 0:03:01]} 14. Bf3 {[%clk 0:01:56]}  Rab8 {[%clk 0:03:00]} 15. b3 {[%clk 0:01:50]}  Rfe8 {[%clk 0:02:54]} 16. Rad1 {[%clk 0:01:48]}  Qa5 {[%clk 0:02:54]} 17. a4 {[%clk 0:01:42]}  Nh5 {[%clk 0:02:37]} 18. Ne2 {[%clk 0:01:36]}  Qxd2 {[%clk 0:02:34]} 19. Rxd2 {[%clk 0:01:37]}  a5 {[%clk 0:02:25]} 20. e5 {[%clk 0:01:30]}  Bh6 {[%clk 0:01:53]} 21. g4 {[%clk 0:01:27]}  Nxf4 {[%clk 0:01:52]} 22. Bxf4 {[%clk 0:01:26]}  Bxf4 {[%clk 0:01:50]} 23. Nxf4 {[%clk 0:01:27]}  Nxe5 {[%clk 0:01:50]} 24. Nd3 {[%clk 0:01:25]}  Nxf3+ {[%clk 0:01:45]} 25. Rxf3 {[%clk 0:01:26]}  e5 {[%clk 0:01:44]} 26. Rf6 {[%clk 0:01:24]}  Re6 {[%clk 0:01:38]} 27. g5 {[%clk 0:01:20]}  Kg7 {[%clk 0:01:33]} 28. Rdf2 {[%clk 0:01:18]}  Rxf6 {[%clk 0:01:32]} 29. Rxf6 {[%clk 0:01:18]}  Rd8 {[%clk 0:01:30]} 30. Nf2 {[%clk 0:01:15]}  h6 {[%clk 0:01:18]} 31. h4 {[%clk 0:01:12]}  hxg5 {[%clk 0:01:17]} 32. hxg5 {[%clk 0:01:11]}  Kf8 {[%clk 0:01:12]} 33. Ng4 {[%clk 0:01:01]}  Ke7 {[%clk 0:01:05]} 34. Nh6 {[%clk 0:01:01]}  Rf8 {[%clk 0:01:05]} 35. Kf2 {[%clk 0:01:01]}  c5 {[%clk 0:01:02]} 36. Ke3 {[%clk 0:00:54]}  d5 {[%clk 0:01:01]} 37. Rc6 {[%clk 0:00:54]}  c4 {[%clk 0:00:54]} 38. bxc4 {[%clk 0:00:52]}  dxc4 {[%clk 0:00:55]} 39. Rxc4 {[%clk 0:00:52]}  Ke6 {[%clk 0:00:56]} 40. Ke4 {[%clk 0:00:51]}  Rb8 {[%clk 0:00:55]} 41. Rc6+ {[%clk 0:00:51]}  Kd7 {[%clk 0:00:56]} 42. Ra6 {[%clk 0:00:46]}  Rb4+ {[%clk 0:00:55]} 43. Kxe5 {[%clk 0:00:47]}  Rxa4 {[%clk 0:00:56]} 44. Ra7+ {[%clk 0:00:46]}  Kc6 {[%clk 0:00:55]} 45. Nxf7 {[%clk 0:00:42]}  Kb6 {[%clk 0:00:54]} 46. Rd7 {[%clk 0:00:40]}  Rc4 {[%clk 0:00:54]} 47. Rd2 {[%clk 0:00:40]}  a4 {[%clk 0:00:49]} 48. Kf6 {[%clk 0:00:40]}  Rc6+ {[%clk 0:00:45]} 49. Kg7 {[%clk 0:00:27]}  a3 {[%clk 0:00:46]} 50. c4 {[%clk 0:00:26]}  Rxc4 {[%clk 0:00:45]} 51. Kxg6 {[%clk 0:00:25]}  Ka5 {[%clk 0:00:33]} 52. Nd6 {[%clk 0:00:24]}  Rc6 {[%clk 0:00:32]} 53. Kf7 {[%clk 0:00:24]}  Kb4 {[%clk 0:00:31]} 54. Nf5 {[%clk 0:00:14]}  Kc3 {[%clk 0:00:28]} 55. Ra2 {[%clk 0:00:14]}  Rc7+ {[%clk 0:00:25]} 56. Ne7 {[%clk 0:00:13]}  Kb3 {[%clk 0:00:26]} 57. Ra1 {[%clk 0:00:11]}  Kb2 {[%clk 0:00:25]} 58. Rxa3 {[%clk 0:00:10]}  Kxa3 {[%clk 0:00:24]} 59. g6 {[%clk 0:00:11]}  Rb7 {[%clk 0:00:17]} 60. g7 {[%clk 0:00:11]}  Rb8 {[%clk 0:00:16]} 61. Ng6 {[%clk 0:00:12]}  Rb7+ {[%clk 0:00:15]} 62. Ne7 {[%clk 0:00:13]}  Rb8 {[%clk 0:00:15]} 63. Ng6 {[%clk 0:00:10]}  Rb7+ {[%clk 0:00:15]} 64. Ne7 {[%clk 0:00:11]} 1/2-1/2


[Site "https://www.chess.com"]

[Event "Titled Tuesday Blitz March 28 Late 2023"]
[White "Sreyas Payyappat"]
[Black "Mazibuko, Khanya"]
[WhiteFideId "46674969"]
[BlackFideId "14321041"]
[WhiteElo "2083"]
[BlackElo "1873"]
[Result "1-0"]
[Round "04"]
[TimeControl "180+2"]
[Date "2023.03.28"]
[WhiteClock "0:00:26"]
[BlackClock "0:00:25"]

1. e4 {[%clk 0:02:55]}  e5 {[%clk 0:02:58]} 2. Nf3 {[%clk 0:02:54]}  Nc6 {[%clk 0:02:57]} 3. Bc4 {[%clk 0:02:54]}  Bc5 {[%clk 0:02:57]} 4. c3 {[%clk 0:02:53]}  Nf6 {[%clk 0:02:58]} 5. d4 {[%clk 0:02:51]}  exd4 {[%clk 0:02:58]} 6. e5 {[%clk 0:02:51]}  d5 {[%clk 0:02:57]} 7. Bb5 {[%clk 0:02:50]}  Ne4 {[%clk 0:02:58]} 8. cxd4 {[%clk 0:02:49]}  Bb6 {[%clk 0:02:58]} 9. Nc3 {[%clk 0:02:48]}  O-O {[%clk 0:02:57]} 10. Be3 {[%clk 0:02:48]}  Bg4 {[%clk 0:02:57]} 11. h3 {[%clk 0:02:46]}  Bh5 {[%clk 0:02:57]} 12. Qc2 {[%clk 0:02:45]}  Ba5 {[%clk 0:02:54]} 13. Bxc6 {[%clk 0:02:43]}  bxc6 {[%clk 0:02:54]} 14. O-O {[%clk 0:02:41]}  Bxf3 {[%clk 0:02:42]} 15. gxf3 {[%clk 0:02:42]}  Bxc3 {[%clk 0:02:37]} 16. fxe4 {[%clk 0:02:36]}  Ba5 {[%clk 0:02:34]} 17. Qxc6 {[%clk 0:02:30]}  Qh4 {[%clk 0:02:33]} 18. Kh2 {[%clk 0:02:07]}  Qxe4 {[%clk 0:02:24]} 19. Rg1 {[%clk 0:02:06]}  f5 {[%clk 0:02:16]} 20. Qe6+ {[%clk 0:01:14]}  Rf7 {[%clk 0:02:08]} 21. Bh6 {[%clk 0:01:12]}  g6 {[%clk 0:01:20]} 22. Rxg6+ {[%clk 0:00:56]}  hxg6 {[%clk 0:01:21]} 23. Qxg6+ {[%clk 0:00:55]}  Kh8 {[%clk 0:01:21]} 24. Qxf7 {[%clk 0:00:44]}  Rg8 {[%clk 0:01:20]} 25. Rg1 {[%clk 0:00:27]}  Rxg1 {[%clk 0:00:45]} 26. Kxg1 {[%clk 0:00:28]}  Qe1+ {[%clk 0:00:25]} 27. Kg2 {[%clk 0:00:26]} 1-0


[Site "https://www.chess.com"]

[Event "Titled Tuesday Blitz March 28 Late 2023"]
[White "Miszler, Levente"]
[Black "Garrido, Denis"]
[WhiteFideId "763276"]
[BlackFideId "601217"]
[WhiteElo "2176"]
[BlackElo "2285"]
[Result "1-0"]
[Round "04"]
[TimeControl "180+2"]
[Date "2023.03.28"]
[WhiteClock "0:00:29"]
[BlackClock "0:00:36"]

1. Nf3 {[%clk 0:03:00]}  d5 {[%clk 0:02:59]} 2. c4 {[%clk 0:02:54]}  e6 {[%clk 0:02:59]} 3. g3 {[%clk 0:02:52]}  Nf6 {[%clk 0:02:58]} 4. Bg2 {[%clk 0:02:51]}  Be7 {[%clk 0:02:58]} 5. O-O {[%clk 0:02:51]}  O-O {[%clk 0:02:59]} 6. Qc2 {[%clk 0:02:43]}  c5 {[%clk 0:02:48]} 7. cxd5 {[%clk 0:02:39]}  Nxd5 {[%clk 0:02:44]} 8. a3 {[%clk 0:02:38]}  Nc6 {[%clk 0:02:43]} 9. d3 {[%clk 0:02:35]}  Bf6 {[%clk 0:02:32]} 10. Nc3 {[%clk 0:02:35]}  b6 {[%clk 0:02:22]} 11. Bd2 {[%clk 0:02:26]}  Bb7 {[%clk 0:02:21]} 12. Rac1 {[%clk 0:02:24]}  Rc8 {[%clk 0:02:20]} 13. Rfd1 {[%clk 0:02:23]}  Nde7 {[%clk 0:02:13]} 14. Ne4 {[%clk 0:02:22]}  Nf5 {[%clk 0:02:10]} 15. Nxf6+ {[%clk 0:02:21]}  Qxf6 {[%clk 0:02:08]} 16. e3 {[%clk 0:02:21]}  Rfd8 {[%clk 0:02:08]} 17. Bc3 {[%clk 0:02:21]}  Qe7 {[%clk 0:02:06]} 18. Qa4 {[%clk 0:02:12]}  a6 {[%clk 0:02:00]} 19. Qg4 {[%clk 0:01:59]}  g6 {[%clk 0:01:55]} 20. d4 {[%clk 0:01:23]}  cxd4 {[%clk 0:01:44]} 21. Nxd4 {[%clk 0:01:23]}  Ncxd4 {[%clk 0:01:44]} 22. Bxb7 {[%clk 0:01:16]}  Qxb7 {[%clk 0:01:43]} 23. exd4 {[%clk 0:01:12]}  Rd5 {[%clk 0:01:28]} 24. h4 {[%clk 0:01:08]}  h5 {[%clk 0:01:27]} 25. Qf4 {[%clk 0:01:05]}  Rcd8 {[%clk 0:01:24]} 26. b4 {[%clk 0:00:59]}  b5 {[%clk 0:01:22]} 27. Bb2 {[%clk 0:00:59]}  Nd6 {[%clk 0:01:12]} 28. Rc5 {[%clk 0:00:53]}  Nc4 {[%clk 0:01:12]} 29. Rc7 {[%clk 0:00:53]}  Qxc7 {[%clk 0:01:01]} 30. Qxc7 {[%clk 0:00:54]}  Nxb2 {[%clk 0:01:02]} 31. Rc1 {[%clk 0:00:48]}  Nc4 {[%clk 0:00:59]} 32. Qb7 {[%clk 0:00:41]}  R8d6 {[%clk 0:00:57]} 33. a4 {[%clk 0:00:35]}  Kg7 {[%clk 0:00:39]} 34. axb5 {[%clk 0:00:33]}  axb5 {[%clk 0:00:40]} 35. Ra1 {[%clk 0:00:32]}  Rb6 {[%clk 0:00:38]} 36. Qc7 {[%clk 0:00:30]}  Rxd4 {[%clk 0:00:36]} 37. Ra7 {[%clk 0:00:29]} 1-0


[Site "https://www.chess.com"]

[Event "Titled Tuesday Blitz March 28 Late 2023"]
[White "Khandelwal, Ankush"]
[Black "Estremera Panos, Sergio"]
[WhiteFideId "413470"]
[BlackFideId "2200864"]
[WhiteElo "2263"]
[BlackElo "2253"]
[Result "1-0"]
[Round "04"]
[TimeControl "180+2"]
[Date "2023.03.28"]
[WhiteClock "0:00:44"]
[BlackClock "0:00:16"]

1. e4 {[%clk 0:02:58]}  c5 {[%clk 0:02:59]} 2. Nf3 {[%clk 0:02:57]}  Nc6 {[%clk 0:03:00]} 3. d4 {[%clk 0:02:56]}  cxd4 {[%clk 0:03:01]} 4. Nxd4 {[%clk 0:02:56]}  e5 {[%clk 0:03:01]} 5. Nb5 {[%clk 0:02:56]}  d6 {[%clk 0:03:01]} 6. c4 {[%clk 0:02:41]}  g6 {[%clk 0:03:00]} 7. N1c3 {[%clk 0:02:39]}  a6 {[%clk 0:03:00]} 8. Na3 {[%clk 0:02:38]}  Be6 {[%clk 0:03:01]} 9. Nc2 {[%clk 0:02:34]}  Bg7 {[%clk 0:03:00]} 10. Be2 {[%clk 0:02:32]}  Nf6 {[%clk 0:03:00]} 11. O-O {[%clk 0:02:30]}  O-O {[%clk 0:03:00]} 12. Be3 {[%clk 0:02:28]}  Rb8 {[%clk 0:02:57]} 13. f3 {[%clk 0:02:06]}  Nh5 {[%clk 0:02:03]} 14. Nd5 {[%clk 0:01:46]}  b5 {[%clk 0:01:57]} 15. cxb5 {[%clk 0:01:41]}  axb5 {[%clk 0:01:58]} 16. Qd2 {[%clk 0:01:38]}  Nd4 {[%clk 0:01:47]} 17. Nxd4 {[%clk 0:01:29]}  Bxd5 {[%clk 0:01:41]} 18. Nxb5 {[%clk 0:01:19]}  Bc6 {[%clk 0:01:09]} 19. Nxd6 {[%clk 0:01:19]}  Nf4 {[%clk 0:01:07]} 20. Bc4 {[%clk 0:01:19]}  Qc7 {[%clk 0:00:45]} 21. Rfd1 {[%clk 0:01:13]}  Rbd8 {[%clk 0:00:43]} 22. Qb4 {[%clk 0:01:00]}  Rb8 {[%clk 0:00:41]} 23. Qc3 {[%clk 0:00:51]}  Bd7 {[%clk 0:00:22]} 24. Bxf7+ {[%clk 0:00:44]}  Rxf7 {[%clk 0:00:20]} 25. Qxc7 {[%clk 0:00:45]}  Re7 {[%clk 0:00:16]} 26. Qxb8+ {[%clk 0:00:44]} 1-0


[Site "https://www.chess.com"]

[Event "Titled Tuesday Blitz March 28 Late 2023"]
[White "Kokoszczynski, Jan"]
[Black "FuenfgegenWilly"]
[WhiteFideId "1174460"]
[WhiteElo "2139"]
[BlackElo "2253"]
[Result "1-0"]
[Round "04"]
[TimeControl "180+2"]
[Date "2023.03.28"]
[WhiteClock "0:00:36"]
[BlackClock "0:00:08"]

1. c4 {[%clk 0:03:00]}  e5 {[%clk 0:02:59]} 2. Nc3 {[%clk 0:03:01]}  Nc6 {[%clk 0:02:58]} 3. Nf3 {[%clk 0:03:01]}  f5 {[%clk 0:02:59]} 4. d4 {[%clk 0:03:01]}  e4 {[%clk 0:02:59]} 5. Ng5 {[%clk 0:03:01]}  Bb4 {[%clk 0:02:40]} 6. h4 {[%clk 0:03:00]}  Nf6 {[%clk 0:02:20]} 7. g3 {[%clk 0:02:46]}  d5 {[%clk 0:02:12]} 8. e3 {[%clk 0:02:39]}  O-O {[%clk 0:01:51]} 9. Qb3 {[%clk 0:02:33]}  Bxc3+ {[%clk 0:01:49]} 10. Qxc3 {[%clk 0:02:27]}  h6 {[%clk 0:01:23]} 11. Nh3 {[%clk 0:02:26]}  Be6 {[%clk 0:01:24]} 12. Nf4 {[%clk 0:02:26]}  Bf7 {[%clk 0:01:25]} 13. h5 {[%clk 0:02:24]}  Kh7 {[%clk 0:01:18]} 14. Be2 {[%clk 0:02:24]}  a5 {[%clk 0:01:14]} 15. Bd2 {[%clk 0:02:13]}  Nb4 {[%clk 0:01:08]} 16. a3 {[%clk 0:02:09]}  dxc4 {[%clk 0:01:01]} 17. axb4 {[%clk 0:01:48]}  axb4 {[%clk 0:01:01]} 18. Qc1 {[%clk 0:01:49]}  Qe7 {[%clk 0:00:40]} 19. O-O {[%clk 0:01:39]}  b5 {[%clk 0:00:39]} 20. Kg2 {[%clk 0:01:31]}  Nd5 {[%clk 0:00:31]} 21. Nxd5 {[%clk 0:01:20]}  Bxd5 {[%clk 0:00:32]} 22. Rh1 {[%clk 0:01:20]}  Rxa1 {[%clk 0:00:28]} 23. Qxa1 {[%clk 0:01:20]}  Ra8 {[%clk 0:00:29]} 24. Qe1 {[%clk 0:01:19]}  b3 {[%clk 0:00:29]} 25. Bb4 {[%clk 0:01:19]}  Qd8 {[%clk 0:00:28]} 26. Ba3 {[%clk 0:01:16]}  c6 {[%clk 0:00:27]} 27. Qb4 {[%clk 0:01:15]}  Qa5 {[%clk 0:00:27]} 28. Qxa5 {[%clk 0:01:01]}  Rxa5 {[%clk 0:00:28]} 29. Rc1 {[%clk 0:00:59]}  Ra4 {[%clk 0:00:28]} 30. Bc5 {[%clk 0:00:55]}  Ra2 {[%clk 0:00:26]} 31. Ba3 {[%clk 0:00:50]}  Rxa3 {[%clk 0:00:08]} 32. bxa3 {[%clk 0:00:36]} 1-0


[Site "https://www.chess.com"]

[Event "Titled Tuesday Blitz March 28 Late 2023"]
[White "Mendez Machado, Andre"]
[Black "Senthilkumar, Pranav"]
[WhiteFideId "6603793"]
[BlackFideId "2083477"]
[WhiteElo "1984"]
[BlackElo "1860"]
[Result "1-0"]
[Round "04"]
[TimeControl "180+2"]
[Date "2023.03.28"]
[WhiteClock "0:00:12"]
[BlackClock "0:00:25"]

1. e4 {[%clk 0:03:00]}  c5 {[%clk 0:02:58]} 2. Nc3 {[%clk 0:03:00]}  e6 {[%clk 0:02:58]} 3. d4 {[%clk 0:03:00]}  cxd4 {[%clk 0:02:59]} 4. Qxd4 {[%clk 0:03:00]}  Nc6 {[%clk 0:03:00]} 5. Qe3 {[%clk 0:03:00]}  d6 {[%clk 0:02:58]} 6. b3 {[%clk 0:02:54]}  Nf6 {[%clk 0:02:57]} 7. Bb2 {[%clk 0:02:52]}  Be7 {[%clk 0:02:58]} 8. O-O-O {[%clk 0:02:46]}  O-O {[%clk 0:02:58]} 9. Kb1 {[%clk 0:02:46]}  a6 {[%clk 0:02:56]} 10. f4 {[%clk 0:02:45]}  Nd7 {[%clk 0:02:55]} 11. Nf3 {[%clk 0:02:40]}  b5 {[%clk 0:02:55]} 12. Rg1 {[%clk 0:02:38]}  Bb7 {[%clk 0:02:55]} 13. g4 {[%clk 0:02:37]}  Qc7 {[%clk 0:02:55]} 14. Bd3 {[%clk 0:02:28]}  Nc5 {[%clk 0:02:54]} 15. g5 {[%clk 0:02:24]}  b4 {[%clk 0:02:52]} 16. Ne2 {[%clk 0:02:23]}  a5 {[%clk 0:02:52]} 17. f5 {[%clk 0:02:16]}  Ne5 {[%clk 0:02:41]} 18. f6 {[%clk 0:01:56]}  Bd8 {[%clk 0:02:29]} 19. fxg7 {[%clk 0:01:54]}  Kxg7 {[%clk 0:02:16]} 20. Nf4 {[%clk 0:01:48]}  a4 {[%clk 0:02:06]} 21. Nh5+ {[%clk 0:01:42]}  Kh8 {[%clk 0:02:06]} 22. Nf6 {[%clk 0:01:05]}  Bxf6 {[%clk 0:01:57]} 23. gxf6 {[%clk 0:01:01]}  Rg8 {[%clk 0:01:55]} 24. Nxe5 {[%clk 0:00:52]}  dxe5 {[%clk 0:01:56]} 25. Qh6 {[%clk 0:00:45]}  Rg6 {[%clk 0:01:30]} 26. Rxg6 {[%clk 0:00:43]}  fxg6 {[%clk 0:01:31]} 27. Bxe5 {[%clk 0:00:39]}  Qf7 {[%clk 0:01:28]} 28. h4 {[%clk 0:00:14]}  Bxe4 {[%clk 0:00:59]} 29. Bxe4 {[%clk 0:00:14]}  Nxe4 {[%clk 0:01:00]} 30. Rd7 {[%clk 0:00:14]}  Ra7 {[%clk 0:00:25]} 31. Rd8+ {[%clk 0:00:12]} 1-0


[Site "https://www.chess.com"]